bitfinex/quotes_BTCUSD_20251027
["timestamp","ask_amount","ask_price","bid_price","bid_amount"]
[1761565555505,0.17927036,115430.0,115420.0,1.20058911]
[1761565558139,0.17927036,115430.0,115420.0,1.3738693]
[1761565558309,0.17927036,115430.0,115420.0,1.20058911]
[1761565561842,0.17927036,115430.0,115420.0,0.76833901]
[1761565563917,0.17927036,115430.0,115420.0,1.20058911]
[1761565564264,0.17927036,115430.0,115420.0,0.76833901]
[1761565564842,0.20526348,115430.0,115420.0,0.76833901]
[1761565566953,0.20526348,115430.0,115420.0,1.20058911]
[1761565569247,0.20526348,115430.0,115420.0,0.76833901]
[1761565570806,0.20526348,115430.0,115420.0,1.20058911]
[1761565571665,0.20526348,115430.0,115420.0,0.76833901]
[1761565581261,0.20526348,115430.0,115420.0,0.17985901]
[1761565581443,0.20526348,115430.0,115420.0,0.76833901]
[1761565582829,0.20526348,115430.0,115420.0,0.67852]
[1761565583463,0.63751358,115430.0,115420.0,0.29788]
[1761565583673,0.20526348,115430.0,115420.0,0.67852]
[1761565584348,0.21337271,115430.0,115420.0,0.67852]
[1761565585794,0.29612776,115430.0,115420.0,0.67852]
[1761565585972,0.72837786,115430.0,115420.0,0.67852]
[1761565588075,0.64562281,115430.0,115420.0,0.52648]
[1761565588292,0.64562281,115430.0,115420.0,0.67852]
[1761565589412,0.17332524,115390.0,115380.0,1.01176457]
[1761565589662,0.17332524,115390.0,115380.0,1.1570321]
[1761565589895,0.17332524,115390.0,115380.0,1.18303267]
[1761565590115,0.17332524,115390.0,115380.0,1.00102637]
[1761565590360,0.17332524,115390.0,115380.0,0.93882694]
[1761565590784,0.17332524,115390.0,115380.0,1.09086694]
[1761565590988,0.17332524,115390.0,115380.0,0.73455763]
[1761565591194,0.17332524,115390.0,115380.0,0.73555763]
[1761565591605,0.17332524,115390.0,115380.0,0.30330753]
[1761565591855,0.17332524,115390.0,115380.0,0.72955763]
[1761565592736,0.17332524,115390.0,115380.0,0.90289789]
[1761565593386,0.17332524,115390.0,115380.0,0.72955763]
[1761565594013,0.17332524,115390.0,115380.0,0.90289789]
[1761565594981,0.17332524,115390.0,115380.0,0.47064779]
[1761565595189,0.17332524,115390.0,115380.0,0.90289789]
[1761565597400,0.17332524,115390.0,115380.0,1.37409789]
[1761565600076,0.17332524,115390.0,115380.0,0.94184779]
[1761565600281,0.17332524,115390.0,115380.0,1.37409789]
[1761565601866,0.19932498,115400.0,115380.0,1.37409789]
[1761565602067,0.19932498,115400.0,115390.0,0.57750911]
[1761565603333,0.20232498,115400.0,115390.0,0.57750911]
[1761565606158,0.17632371,115400.0,115390.0,0.57750911]
[1761565606553,0.17632371,115400.0,115390.0,0.75074911]
[1761565610621,0.17632371,115400.0,115390.0,0.92407435]
[1761565610622,0.003,115400.0,115390.0,0.92407435]
[1761565610840,0.17631022,115400.0,115390.0,0.92407435]
[1761565611056,0.003,115400.0,115390.0,0.92407435]
[1761565611974,0.003,115400.0,115390.0,0.97812968]
[1761565612190,0.003,115400.0,115390.0,1.0041275]
[1761565612406,0.18198605,115410.0,115400.0,0.17331022]
[1761565612643,0.18198605,115410.0,115400.0,0.90151466]
[1761565616099,0.18198605,115410.0,115400.0,1.10939466]
[1761565616750,0.18198605,115410.0,115400.0,0.62308923]
[1761565616971,0.18198605,115410.0,115400.0,0.57612444]
[1761565617190,0.18198605,115410.0,115400.0,1.16476444]
[1761565617410,0.18198605,115410.0,115400.0,0.57612444]
[1761565617627,0.18198605,115410.0,115400.0,1.16476444]
[1761565618720,0.18198605,115410.0,115400.0,1.10932444]
[1761565618962,0.18198605,115410.0,115400.0,1.16476444]
[1761565620487,0.18198605,115410.0,115400.0,1.33807466]
[1761565621392,0.1732952,115410.0,115400.0,1.33807466]
[1761565622266,0.1732952,115410.0,115400.0,0.57612444]
[1761565622485,0.1732952,115410.0,115400.0,0.62297901]
[1761565622716,0.1732952,115410.0,115400.0,1.16472444]
[1761565624691,0.1732952,115410.0,115400.0,1.10928444]
[1761565624933,0.1732952,115410.0,115400.0,1.16472444]
[1761565627537,0.1732952,115410.0,115400.0,0.08981901]
[1761565627749,0.1732952,115410.0,115400.0,0.67841901]
[1761565627970,0.1732952,115410.0,115400.0,1.16472444]
[1761565629134,0.1732952,115410.0,115400.0,0.29769901]
[1761565629372,0.1732952,115410.0,115400.0,0.67841901]
[1761565629609,0.1732952,115410.0,115400.0,0.5886]
[1761565629844,0.17331022,115400.0,115390.0,0.48630543]
[1761565630083,0.17331022,115400.0,115390.0,1.16472444]
[1761565630560,0.17331022,115400.0,115390.0,0.57612444]
[1761565630747,0.17331022,115400.0,115390.0,1.16472444]
[1761565631244,0.17631022,115400.0,115390.0,1.16472444]
[1761565637730,0.17631022,115400.0,115390.0,0.67841901]
[1761565637938,0.17631022,115400.0,115390.0,1.16472444]
[1761565643305,0.17631022,115400.0,115390.0,0.67841901]
[1761565643512,0.17631022,115400.0,115390.0,1.16472444]
[1761565644151,0.17631022,115400.0,115390.0,1.25480444]
[1761565651833,0.17631022,115400.0,115390.0,1.42812968]
[1761565653343,0.003,115400.0,115390.0,1.42812968]
[1761565653581,0.003,115400.0,115390.0,2.35281682]
[1761565653822,0.003,115400.0,115390.0,1.83030805]
[1761565654250,0.003,115400.0,115390.0,1.89259271]
[1761565654870,0.003,115400.0,115390.0,1.89359271]
[1761565655507,0.17329572,115410.0,115400.0,0.51331022]
[1761565655719,0.17329572,115410.0,115400.0,1.08943466]
[1761565656606,0.17329572,115410.0,115400.0,0.60312923]
[1761565656810,0.17329572,115410.0,115400.0,1.08943466]
[1761565657020,0.17329572,115410.0,115400.0,1.09143466]
[1761565660268,0.18197993,115420.0,115400.0,0.60512923]
[1761565660473,0.18197993,115420.0,115410.0,0.72816444]
[1761565660688,0.18197993,115420.0,115410.0,0.08981901]
[1761565660902,0.1732952,115410.0,115400.0,0.342]
[1761565661111,0.1732952,115410.0,115400.0,1.50672444]
[1761565661320,0.1732952,115410.0,115400.0,0.91812444]
[1761565661528,0.1732952,115410.0,115400.0,1.50672444]
[1761565661940,0.1732952,115410.0,115400.0,1.50472444]
[1761565662940,0.1732952,115410.0,115400.0,1.16472444]
[1761565663305,0.1732952,115410.0,115400.0,0.67841901]
[1761565663507,0.1732952,115410.0,115400.0,1.16472444]
[1761565664737,0.1732952,115410.0,115400.0,0.57612444]
[1761565664963,0.1732952,115410.0,115400.0,1.16472444]
[1761565665360,0.1732952,115410.0,115400.0,0.93604444]
[1761565665675,0.1732952,115410.0,115400.0,0.57612444]
[1761565665876,0.1732952,115410.0,115400.0,1.16472444]
[1761565666906,0.1732952,115410.0,115400.0,0.67841901]
[1761565667177,0.1732952,115410.0,115400.0,1.16472444]
[1761565670137,0.1732952,115410.0,115400.0,0.57612444]
[1761565670338,0.1732952,115410.0,115400.0,1.16472444]
[1761565671123,0.1732952,115410.0,115400.0,0.67841901]
[1761565671327,0.1732952,115410.0,115400.0,1.16472444]
[1761565671803,0.1732952,115410.0,115400.0,0.67841901]
[1761565673800,0.1732952,115410.0,115400.0,1.11078968]
[1761565680348,0.1732952,115410.0,115400.0,0.67841901]
[1761565681191,0.1732952,115410.0,115400.0,0.52637901]
[1761565681397,0.17331022,115400.0,115390.0,0.09008]
[1761565681607,0.17331022,115400.0,115390.0,0.76849901]
[1761565682267,0.17331022,115400.0,115390.0,0.61645901]
[1761565682473,0.17331022,115400.0,115390.0,0.76849901]
[1761565689492,0.60568089,115400.0,115390.0,0.09008]
[1761565689701,0.60568089,115400.0,115390.0,0.52664]
[1761565689912,0.6316862,115400.0,115390.0,0.67868]
[1761565690088,0.63978823,115400.0,115390.0,0.67868]
[1761565690388,0.6316862,115400.0,115390.0,0.67868]
[1761565690621,0.71218434,115400.0,115390.0,0.67868]
[1761565691749,0.72018434,115400.0,115390.0,0.67868]
[1761565694726,1.06018434,115400.0,115390.0,0.67868]
[1761565698842,0.62781367,115400.0,115390.0,0.67868]
[1761565699085,1.06018434,115400.0,115390.0,0.67868]
[1761565700818,1.06018434,115400.0,115390.0,0.5886]
[1761565703957,0.62781367,115400.0,115390.0,0.5886]
[1761565704162,0.9796862,115400.0,115390.0,0.5886]
[1761565708139,0.98776918,115400.0,115390.0,0.5886]
[1761565717467,0.55539851,115400.0,115390.0,0.5886]
[1761565717942,0.98776918,115400.0,115390.0,0.5886]
[1761565719319,1.00644497,115400.0,115390.0,0.5886]
[1761565719796,1.09626398,115400.0,115390.0,0.5886]
[1761565721266,1.07758819,115400.0,115390.0,0.5886]
[1761565733777,1.13197068,115400.0,115390.0,0.5886]
[1761565736164,1.15064323,115400.0,115390.0,0.5886]
[1761565737975,0.66389007,115400.0,115390.0,0.5886]
[1761565738228,1.15064323,115400.0,115390.0,0.5886]
[1761565741080,1.06082422,115400.0,115390.0,0.5886]
[1761565743343,0.57407106,115400.0,115390.0,0.5886]
[1761565743572,1.06082422,115400.0,115390.0,0.5886]
[1761565745685,1.04215167,115400.0,115390.0,0.5886]
[1761565745886,0.55539851,115400.0,115390.0,0.5886]
[1761565746069,1.04217355,115400.0,115390.0,0.5886]
[1761565747314,1.13199256,115400.0,115390.0,0.5886]
[1761565747716,0.55542039,115400.0,115390.0,0.5886]
[1761565747917,0.52941508,115400.0,115390.0,0.5886]
[1761565748170,1.01616824,115400.0,115390.0,0.5886]
[1761565752869,0.52941508,115400.0,115390.0,0.5886]
[1761565753024,1.01616824,115400.0,115390.0,0.5886]
[1761565753617,1.10598725,115400.0,115390.0,0.5886]
[1761565755192,0.61923409,115400.0,115390.0,0.5886]
[1761565755400,1.10598725,115400.0,115390.0,0.5886]
[1761565756082,0.61923409,115400.0,115390.0,0.5886]
[1761565756507,1.10598725,115400.0,115390.0,0.5886]
[1761565760659,0.52941508,115400.0,115390.0,0.5886]
[1761565761251,0.18941508,115400.0,115390.0,0.5886]
[1761565762350,0.18131022,115400.0,115390.0,1.07535316]
[1761565764191,0.18131022,115400.0,115390.0,1.33849741]
[1761565769213,0.17331022,115400.0,115390.0,1.33849741]
[1761565769767,0.17631022,115400.0,115390.0,1.33849741]
[1761565771293,0.17631022,115400.0,115390.0,1.42857741]
[1761565778047,0.003,115400.0,115390.0,1.42857741]
[1761565778695,0.003,115400.0,115390.0,1.45457785]
[1761565781949,0.17631022,115400.0,115390.0,1.45457785]
[1761565782567,0.003,115400.0,115390.0,1.45457785]
[1761565782774,0.17631022,115400.0,115390.0,1.45457785]
[1761565782993,0.17631022,115400.0,115390.0,1.28125261]
[1761565783208,0.17631022,115400.0,115390.0,0.94182425]
[1761565785331,0.17631022,115400.0,115390.0,1.42857741]
[1761565788295,0.17631022,115400.0,115390.0,1.25525217]
[1761565788503,0.17631022,115400.0,115390.0,1.42857741]
[1761565789351,0.17631022,115400.0,115390.0,0.94182425]
[1761565789559,0.17631022,115400.0,115390.0,1.42857741]
[1761565790562,0.17631022,115400.0,115390.0,1.25525217]
[1761565791554,0.17631022,115400.0,115390.0,0.94182425]
[1761565791795,0.17631022,115400.0,115390.0,1.42857741]
[1761565792014,0.17631022,115400.0,115390.0,0.76849901]
[1761565792232,0.17631022,115400.0,115390.0,1.25525217]
[1761565792873,0.17612897,115400.0,115390.0,1.25525217]
[1761565794769,0.17612897,115400.0,115390.0,0.76849901]
[1761565794973,0.17612897,115400.0,115390.0,1.25525217]
[1761565795175,0.17612897,115400.0,115390.0,0.76849901]
[1761565795398,0.17612897,115400.0,115390.0,1.25525217]
[1761565795837,0.17612897,115400.0,115390.0,0.17989901]
[1761565796050,0.17612897,115400.0,115390.0,0.67868]
[1761565796461,0.60861703,115400.0,115390.0,0.67868]
[1761565796666,0.17612897,115400.0,115390.0,0.67868]
[1761565799085,0.17350643,115390.0,115380.0,4.852e-05]
[1761565799257,0.17350643,115390.0,115380.0,0.14530753]
[1761565800354,0.17350643,115390.0,115380.0,0.29730753]
[1761565800772,0.17350643,115390.0,115380.0,0.20748852]
[1761565802477,0.17550643,115390.0,115380.0,0.20748852]
[1761565807418,0.17550643,115390.0,115380.0,0.67876852]
[1761565811753,0.17550643,115390.0,115380.0,0.52676852]
[1761565811978,0.17550643,115390.0,115380.0,0.67876852]
[1761565814253,0.17532524,115390.0,115380.0,0.67876852]
[1761565816153,0.17347293,115380.0,115370.0,0.43491166]
[1761565816360,0.17355687,115380.0,115370.0,0.58017067]
[1761565817330,0.17355687,115380.0,115370.0,1.20345067]
[1761565819574,0.17355687,115380.0,115370.0,1.37680596]
[1761565820213,0.17355687,115380.0,115370.0,0.77096261]
[1761565820396,0.17355687,115380.0,115370.0,1.20345067]
[1761565826136,0.17355687,115380.0,115370.0,1.37680596]
[1761565826599,0.17355687,115380.0,115370.0,1.20345067]
[1761565828597,0.17355687,115380.0,115370.0,1.37680596]
[1761565828822,0.17355687,115380.0,115370.0,1.20345067]
[1761565828967,0.17355687,115380.0,115370.0,1.37680596]
[1761565829565,0.17355687,115380.0,115370.0,1.20345067]
[1761565829972,0.17355687,115380.0,115370.0,1.37680596]
[1761565831289,0.1734242,115380.0,115370.0,1.37680596]
[1761565833151,0.1734242,115380.0,115370.0,1.3766733]
[1761565834143,0.1734242,115380.0,115370.0,1.20331801]
[1761565835277,0.1734242,115380.0,115370.0,1.3766733]
[1761565836095,0.1734242,115380.0,115370.0,1.20331801]
[1761565839178,0.1734242,115380.0,115370.0,1.3766733]
[1761565839369,8.394e-05,115380.0,115370.0,1.3766733]
[1761565839719,8.394e-05,115380.0,115370.0,1.43895796]
[1761565843013,8.394e-05,115380.0,115370.0,1.81514024]
[1761565843445,8.394e-05,115380.0,115370.0,1.8411409]
[1761565848148,8.394e-05,115380.0,115370.0,1.77885624]
[1761565848364,8.394e-05,115380.0,115370.0,1.85645153]
[1761565850215,8.394e-05,115380.0,115370.0,2.00275153]
[1761565850835,8.394e-05,115380.0,115370.0,2.00375153]
[1761565851234,8.394e-05,115380.0,115370.0,2.01175153]
[1761565851810,8.394e-05,115380.0,115370.0,1.78211624]
[1761565851990,8.394e-05,115380.0,115370.0,1.93407624]
[1761565855480,8.394e-05,115380.0,115370.0,1.26137469]
[1761565855678,8.394e-05,115380.0,115370.0,1.22930435]
[1761565855884,8.394e-05,115380.0,115370.0,1.2336333]
[1761565856083,8.394e-05,115380.0,115370.0,1.7255933]
[1761565856991,8.394e-05,115380.0,115370.0,1.7245933]
[1761565857819,8.394e-05,115380.0,115370.0,1.77066648]
[1761565858036,8.394e-05,115380.0,115370.0,1.77366648]
[1761565858881,8.394e-05,115380.0,115370.0,1.28710524]
[1761565859091,8.394e-05,115380.0,115370.0,1.77366648]
[1761565861573,0.1734242,115380.0,115370.0,1.28710524]
[1761565861779,8.394e-05,115380.0,115370.0,1.77366648]
[1761565869268,0.1734242,115380.0,115370.0,1.77366648]
[1761565869917,0.1734242,115380.0,115370.0,0.18518995]
[1761565870136,0.1734242,115380.0,115370.0,0.77374995]
[1761565870343,0.65998544,115380.0,115370.0,0.68393094]
[1761565870568,0.68599223,115380.0,115370.0,0.68393094]
[1761565870917,0.19943099,115380.0,115370.0,0.68093094]
[1761565871360,0.20443099,115380.0,115370.0,0.68093094]
[1761565871915,0.21322325,115380.0,115370.0,0.68093094]
[1761565873462,0.30053424,115380.0,115370.0,0.68093094]
[1761565873636,0.69978449,115380.0,115370.0,0.68093094]
[1761565874151,0.21322325,115380.0,115370.0,0.68093094]
[1761565875037,0.69978449,115380.0,115370.0,0.68093094]
[1761565877326,0.21322325,115380.0,115370.0,0.68093094]
[1761565877530,0.69099223,115380.0,115370.0,0.68093094]
[1761565877757,0.777424,115380.0,115370.0,0.68093094]
[1761565882101,0.29086276,115380.0,115370.0,0.68093094]
[1761565882315,0.69099223,115380.0,115370.0,0.68093094]
[1761565885814,0.20443099,115380.0,115370.0,0.68093094]
[1761565886014,0.69099223,115380.0,115370.0,0.68093094]
[1761565886626,0.20443099,115380.0,115370.0,0.68093094]
[1761565886861,0.69099223,115380.0,115370.0,0.68093094]
[1761565887077,0.71240529,115380.0,115370.0,0.68093094]
[1761565889835,0.22584405,115380.0,115370.0,0.68093094]
[1761565890254,0.71240529,115380.0,115370.0,0.68093094]
[1761565890982,0.22584405,115380.0,115370.0,0.68093094]
[1761565891192,0.20443099,115380.0,115370.0,0.68093094]
[1761565891416,0.69099223,115380.0,115370.0,0.68093094]
[1761565891887,0.20443099,115380.0,115370.0,0.68093094]
[1761565892011,0.69099223,115380.0,115370.0,0.68093094]
[1761565894320,0.20443099,115380.0,115370.0,0.68093094]
[1761565894562,0.69099223,115380.0,115370.0,0.68093094]
[1761565894774,0.77830072,115380.0,115370.0,0.68093094]
[1761565899086,0.17337031,115360.0,115350.0,0.0004]
[1761565899294,0.65993155,115360.0,115350.0,0.05584]
[1761565899893,0.68594619,115360.0,115350.0,0.05584]
[1761565900092,0.19938495,115360.0,115350.0,0.05584]
[1761565900368,0.72157279,115360.0,115350.0,0.05584]
[1761565900546,0.72157279,115360.0,115350.0,0.20784]
[1761565901186,0.72157279,115360.0,115350.0,0.05584]
[1761565901357,1.07467902,115360.0,115350.0,0.20784]
[1761565901566,1.07467902,115360.0,115350.0,0.05584]
[1761565901788,1.07467902,115360.0,115350.0,0.20784]
[1761565902266,0.58811778,115360.0,115350.0,0.20784]
[1761565902486,1.21068031,115360.0,115350.0,0.20784]
[1761565905285,1.21068031,115360.0,115350.0,0.20825221]
[1761565907305,1.21068031,115360.0,115350.0,0.58957221]
[1761565908888,0.17341541,115330.0,115320.0,0.48656124]
[1761565909139,0.17341541,115330.0,115320.0,0.54200124]
[1761565909522,0.17341541,115330.0,115320.0,0.54261977]
[1761565909728,0.19943414,115330.0,115320.0,0.54261977]
[1761565910110,0.19948256,115330.0,115320.0,0.69465977]
[1761565910684,0.19948256,115330.0,115320.0,0.20809853]
[1761565910884,0.19948256,115330.0,115320.0,0.69465977]
[1761565911085,0.19948256,115330.0,115320.0,0.69965977]
[1761565911756,0.19948256,115330.0,115320.0,0.21309853]
[1761565911956,0.19948256,115330.0,115320.0,0.69965977]
[1761565912746,0.19948256,115330.0,115320.0,0.21309853]
[1761565912964,0.19948256,115330.0,115320.0,0.69965977]
[1761565915757,0.19948256,115330.0,115320.0,0.21309853]
[1761565915973,0.19948256,115330.0,115320.0,0.69965977]
[1761565916811,0.19948256,115330.0,115320.0,0.78947878]
[1761565917431,0.19948256,115330.0,115320.0,1.26095878]
[1761565918173,0.19948256,115330.0,115320.0,1.43438923]
[1761565918385,0.19948256,115330.0,115320.0,1.26095878]
[1761565918820,0.19948256,115330.0,115320.0,1.43438923]
[1761565919028,0.19948256,115330.0,115320.0,1.26095878]
[1761565919222,0.19948256,115330.0,115320.0,1.43438923]
[1761565919439,0.19948256,115330.0,115320.0,1.26095878]
[1761565919776,0.19948256,115330.0,115320.0,1.20732969]
[1761565920368,0.19948256,115330.0,115320.0,1.38076014]
[1761565922157,4.842e-05,115330.0,115320.0,1.38076014]
[1761565922790,0.17346383,115330.0,115320.0,1.38076014]
[1761565923244,4.842e-05,115330.0,115320.0,1.38076014]
[1761565924723,4.842e-05,115330.0,115320.0,1.83970686]
[1761565925964,4.842e-05,115330.0,115320.0,1.81369229]
[1761565926164,4.842e-05,115330.0,115320.0,2.15369229]
[1761565926577,4.842e-05,115330.0,115320.0,1.72076014]
[1761565927599,4.842e-05,115330.0,115320.0,2.15369229]
[1761565928687,4.842e-05,115330.0,115320.0,1.72076014]
[1761565929725,4.842e-05,115330.0,115320.0,2.15369229]
[1761565930091,4.842e-05,115330.0,115320.0,1.72076014]
[1761565931684,4.842e-05,115330.0,115320.0,1.28782799]
[1761565931847,4.842e-05,115330.0,115320.0,1.72076014]
[1761565935039,0.17346383,115330.0,115320.0,1.28782799]
[1761565935239,0.17346383,115330.0,115320.0,1.72076014]
[1761565935605,4.842e-05,115330.0,115320.0,1.72076014]
[1761565936050,0.17346383,115330.0,115320.0,1.28782799]
[1761565936211,4.842e-05,115330.0,115320.0,1.72076014]
[1761565937914,0.17346383,115330.0,115320.0,1.13192014]
[1761565938070,0.17346383,115330.0,115320.0,1.38072014]
[1761565939944,0.17346383,115330.0,115320.0,0.77435754]
[1761565942910,0.17346383,115330.0,115320.0,0.94778799]
[1761565943559,0.17346383,115330.0,115320.0,0.77435754]
[1761565943988,0.17346383,115330.0,115320.0,0.94778799]
[1761565944445,0.17346383,115330.0,115320.0,1.20728969]
[1761565944986,0.17346383,115330.0,115320.0,0.77435754]
[1761565945444,0.17346383,115330.0,115320.0,0.62231754]
[1761565945658,0.17346383,115330.0,115320.0,0.77435754]
[1761565946123,0.17346383,115330.0,115320.0,0.68453853]
[1761565949671,0.60639598,115330.0,115320.0,0.53249853]
[1761565950087,0.60639598,115330.0,115320.0,0.68453853]
[1761565950641,0.17346383,115330.0,115320.0,0.68453853]
[1761565951086,0.17346383,115330.0,115320.0,0.67953853]
[1761565951315,0.17646383,115330.0,115320.0,0.67953853]
[1761565952331,0.17646383,115330.0,115320.0,0.67957853]
[1761565963156,0.17346383,115330.0,115320.0,0.67957853]
[1761565963464,0.17346383,115330.0,115320.0,0.68157853]
[1761565968900,0.17346383,115330.0,115320.0,1.11451068]
[1761565969100,0.17346383,115330.0,115320.0,0.68157853]
[1761565978620,0.17346383,115330.0,115320.0,0.67957853]
[1761565979391,0.17346383,115330.0,115320.0,0.09073853]
[1761565979597,0.24142559,115330.0,115320.0,0.67969853]
[1761565979800,0.17346383,115330.0,115320.0,0.67969853]
[1761565981854,0.66069656,115330.0,115320.0,0.67969853]
[1761565986242,0.66940077,115330.0,115320.0,0.67969853]
[1761565986448,0.69542173,115330.0,115320.0,0.67969853]
[1761565988747,0.69542173,115330.0,115320.0,0.09073853]
[1761565988948,0.78230403,115330.0,115320.0,0.67969853]
[1761565989157,0.69542173,115330.0,115320.0,0.67969853]
[1761565993405,0.68671752,115330.0,115320.0,0.67969853]
[1761565994242,0.68971752,115330.0,115320.0,0.67969853]
[1761565996938,0.20248479,115330.0,115320.0,0.67969853]
[1761565998425,0.68971752,115330.0,115320.0,0.67969853]
[1761566009655,1.02971752,115330.0,115320.0,0.09073853]
[1761566009833,1.03782993,115330.0,115320.0,0.67977853]
[1761566014125,0.5505972,115330.0,115320.0,0.67977853]
[1761566014341,1.03782993,115330.0,115320.0,0.67977853]
[1761566014952,0.5505972,115330.0,115320.0,0.67977853]
[1761566016493,1.03782993,115330.0,115320.0,0.67977853]
[1761566017897,0.5505972,115330.0,115320.0,0.67977853]
[1761566018075,1.03782993,115330.0,115320.0,0.67977853]
[1761566020724,0.5505972,115330.0,115320.0,0.67977853]
[1761566020957,1.03782993,115330.0,115320.0,0.67977853]
[1761566021160,0.5505972,115330.0,115320.0,0.67977853]
[1761566021500,1.03782993,115330.0,115320.0,0.67977853]
[1761566024817,0.5505972,115330.0,115320.0,0.67977853]
[1761566025026,1.03782993,115330.0,115320.0,0.67977853]
[1761566025819,0.20248479,115330.0,115320.0,0.67977853]
[1761566026024,0.20248479,115330.0,115320.0,1.16701126]
[1761566026235,0.17646383,115330.0,115320.0,1.16701126]
[1761566027189,0.17346383,115330.0,115320.0,0.67977853]
[1761566027389,0.17346383,115330.0,115320.0,0.68177853]
[1761566034907,0.17346383,115330.0,115320.0,1.16901126]
[1761566037198,0.17346383,115330.0,115320.0,0.68177853]
[1761566037409,0.17346383,115330.0,115320.0,1.16901126]
[1761566039084,0.17346383,115330.0,115320.0,0.68177853]
[1761566039565,0.17346383,115330.0,115320.0,1.16901126]
[1761566043767,0.17346383,115330.0,115320.0,0.68177853]
[1761566044932,0.17346383,115330.0,115320.0,0.67977853]
[1761566045338,0.17346383,115330.0,115320.0,0.68177853]
[1761566045818,0.17346383,115330.0,115320.0,1.11477218]
[1761566046221,0.17346383,115330.0,115320.0,0.68177853]
[1761566046852,0.17346383,115330.0,115320.0,1.37802164]
[1761566047062,0.17346383,115330.0,115320.0,1.20459119]
[1761566047263,0.17346383,115330.0,115320.0,1.37802164]
[1761566048112,0.17346383,115330.0,115320.0,1.37602164]
[1761566048530,0.17346383,115330.0,115320.0,0.94302799]
[1761566048744,4.842e-05,115330.0,115320.0,1.37602164]
[1761566048954,4.842e-05,115330.0,115320.0,1.37802164]
[1761566049176,4.842e-05,115330.0,115320.0,1.40403621]
[1761566049792,0.17346383,115330.0,115320.0,1.40403621]
[1761566054308,0.17346383,115330.0,115320.0,1.40399621]
[1761566060975,0.17346383,115330.0,115320.0,0.97100256]
[1761566061181,0.17346383,115330.0,115320.0,1.23056576]
[1761566061390,0.17346383,115330.0,115320.0,1.40399621]
[1761566061851,0.17346383,115330.0,115320.0,1.23056576]
[1761566062393,0.17346383,115330.0,115320.0,1.40399621]
[1761566062602,0.17346383,115330.0,115320.0,1.23056576]
[1761566063022,0.17346383,115330.0,115320.0,0.61951754]
[1761566063183,0.17346383,115330.0,115320.0,0.77155754]
[1761566063385,0.17346383,115330.0,115320.0,0.68173853]
[1761566064400,0.17346383,115330.0,115320.0,0.67973853]
[1761566064836,0.17346383,115330.0,115320.0,0.68173853]
[1761566077428,0.17346383,115330.0,115320.0,1.11473218]
[1761566077845,0.17346383,115330.0,115320.0,0.68173853]
[1761566087544,0.17346383,115330.0,115320.0,0.67973853]
[1761566095487,0.17346383,115330.0,115320.0,1.11273218]
[1761566095807,0.17346383,115330.0,115320.0,0.67973853]
[1761566095936,0.17346383,115330.0,115320.0,1.11273218]
[1761566099167,0.17346383,115330.0,115320.0,0.67973853]
[1761566102880,0.17346383,115330.0,115320.0,1.11273218]
[1761566103877,0.17346383,115330.0,115320.0,1.16684638]
[1761566104201,0.19948278,115330.0,115320.0,1.16684638]
[1761566106579,0.17346383,115330.0,115320.0,1.16684638]
[1761566110031,0.17346383,115330.0,115320.0,0.67973853]
[1761566110265,0.17346383,115330.0,115320.0,1.16684638]
[1761566114115,0.17346383,115330.0,115320.0,0.67973853]
[1761566114331,0.17346383,115330.0,115320.0,1.16684638]
[1761566117860,0.17346383,115330.0,115320.0,0.09073853]
[1761566118062,0.17343045,115320.0,115310.0,0.49034939]
[1761566118268,0.17343045,115320.0,115310.0,0.54258785]
[1761566118718,0.17343045,115320.0,115310.0,0.54279406]
[1761566119264,0.17343045,115320.0,115310.0,0.69483406]
[1761566119628,0.17343045,115320.0,115310.0,0.86827955]
[1761566119840,0.17343045,115320.0,115310.0,0.95809856]
[1761566120224,0.17343045,115320.0,115310.0,0.96009856]
[1761566121724,0.17343045,115320.0,115310.0,0.78665307]
[1761566122611,0.17343045,115320.0,115310.0,0.96009856]
[1761566123852,0.17343045,115320.0,115310.0,0.78665307]
[1761566124981,0.17343045,115320.0,115310.0,0.29954522]
[1761566125187,0.17343045,115320.0,115310.0,0.78665307]
[1761566126056,0.17343045,115320.0,115310.0,0.29954522]
[1761566126269,0.17343045,115320.0,115310.0,0.78665307]
[1761566126480,0.17343045,115320.0,115310.0,0.57913307]
[1761566126692,0.17343045,115320.0,115310.0,0.96009856]
[1761566126938,0.17343045,115320.0,115310.0,0.78665307]
[1761566127418,0.17343045,115320.0,115310.0,1.25821307]
[1761566128837,0.17343045,115320.0,115310.0,1.43165856]
[1761566131765,0.17343045,115320.0,115310.0,0.94455071]
[1761566131973,0.17343045,115320.0,115310.0,1.43165856]
[1761566133660,0.17346383,115330.0,115310.0,1.43165856]
[1761566133834,0.17346383,115330.0,115320.0,0.48710785]
[1761566134045,0.17346383,115330.0,115320.0,0.54258785]
[1761566135818,0.17346383,115330.0,115320.0,1.29294516]
[1761566136687,4.842e-05,115330.0,115320.0,1.63294516]
[1761566137982,4.842e-05,115330.0,115320.0,1.69510361]
[1761566138163,4.842e-05,115330.0,115320.0,1.72111836]
[1761566139058,4.842e-05,115330.0,115320.0,2.19907836]
[1761566139276,4.842e-05,115330.0,115320.0,2.25455836]
[1761566139700,4.842e-05,115330.0,115320.0,2.25955836]
[1761566140361,4.842e-05,115330.0,115320.0,2.26840718]
[1761566140797,4.842e-05,115330.0,115320.0,2.21292718]
[1761566140998,4.842e-05,115330.0,115320.0,2.26840718]
[1761566141204,4.842e-05,115330.0,115320.0,2.20624873]
[1761566142778,4.842e-05,115330.0,115320.0,2.19739991]
[1761566143732,4.842e-05,115330.0,115320.0,2.19239991]
[1761566149460,4.842e-05,115330.0,115320.0,2.28251991]
[1761566160979,4.842e-05,115330.0,115320.0,2.86796849]
[1761566161217,4.842e-05,115330.0,115320.0,3.00581004]
[1761566161218,8.42e-06,115330.0,115320.0,3.00581004]
[1761566161899,8.42e-06,115330.0,115320.0,3.01081003]
[1761566162314,8.42e-06,115330.0,115320.0,3.02381003]
[1761566162749,8.42e-06,115330.0,115320.0,2.43489003]
[1761566162958,8.42e-06,115330.0,115320.0,2.25231824]
[1761566163164,8.42e-06,115330.0,115320.0,2.89142609]
[1761566163373,8.42e-06,115330.0,115320.0,2.40631824]
[1761566163795,8.42e-06,115330.0,115320.0,2.26143212]
[1761566164051,8.42e-06,115330.0,115320.0,2.25943212]
[1761566164368,8.42e-06,115330.0,115320.0,2.26143212]
[1761566164553,8.42e-06,115330.0,115320.0,1.88067212]
[1761566164792,0.17342383,115330.0,115320.0,0.68093779]
[1761566165007,0.17342383,115330.0,115320.0,1.22488539]
[1761566165226,0.17342383,115330.0,115320.0,1.38800539]
[1761566165455,0.17342383,115330.0,115320.0,1.71700539]
[1761566165692,0.17342383,115330.0,115320.0,1.12812539]
[1761566165897,0.17342383,115330.0,115320.0,1.72200539]
[1761566166103,0.17342383,115330.0,115320.0,1.71700539]
[1761566166306,8.42e-06,115330.0,115320.0,1.71700539]
[1761566166515,8.42e-06,115330.0,115320.0,1.72000539]
[1761566166721,8.42e-06,115330.0,115320.0,1.12912539]
[1761566166965,8.42e-06,115330.0,115320.0,1.71904539]
[1761566167579,8.42e-06,115330.0,115320.0,1.71804539]
[1761566167786,8.42e-06,115330.0,115320.0,2.15180132]